fUST/lending_fUST_20250730
["ID","MTS","AMOUNT","RATE_DAILY","PERIOD"]
[376074743,1753853454715,-200.0,0.00021237,15]
[376074745,1753853454724,-200.0,0.00021237,15]
[376074747,1753853454734,-200.0,0.00021237,15]
[376074749,1753853454743,-200.0,0.00021237,15]
[376074751,1753853454754,-200.0,0.00021237,15]
[376074753,1753853454763,-200.0,0.00021237,15]
[376074755,1753853454772,-200.0,0.00021237,15]
[376074757,1753853454782,-280.0,0.00021237,15]
[376074759,1753853454791,-500.0,0.00021241,2]
[376074760,1753853454800,-560.62068256,0.00021245,4]
[376074762,1753853454810,-3196.69818684,0.00021252,2]
[376074764,1753853454819,-188.67,0.00021279,2]
[376074766,1753853454828,-168.0,0.00021318,2]
[376074768,1753853454838,-460.0,0.00021339,2]
[376074770,1753853454847,-179.29043487,0.00021354,2]
[376074772,1753853454857,-638.096,0.00021354,2]
[376074774,1753853454866,-500.0,0.00021356,2]
[376074776,1753853454875,-296.3,0.00021366,4]
[376074778,1753853454885,-560.62068256,0.00021383,5]
[376074780,1753853454894,-1027.26,0.00021427,2]
[376074782,1753853454903,-2127.65,0.00021428,2]
[376074783,1753853454912,-451.00220532,0.00021428,2]
[376074785,1753853454921,-1489.26,0.00021428,2]
[376074787,1753853454931,-718.13,0.00021428,2]
[376074789,1753853454941,-460.0,0.00021428,2]
[376074791,1753853454951,-2793.96,0.00021428,2]
[376074793,1753853454960,-460.0,0.00021428,2]
[376074795,1753853454970,-236.46136199,0.00021429,2]
[376074804,1753853454979,-405.86624981,0.00021429,2]
[376074807,1753853455066,-460.0,0.00021429,2]
[376074808,1753853455075,-460.0,0.00021429,2]
[376074810,1753853455084,-489.17,0.00021429,2]
[376074812,1753853455094,-1486.8,0.00021429,2]
[376074814,1753853455103,-460.0,0.00021429,2]
[376074816,1753853455112,-460.0,0.00021429,2]
[376074818,1753853455121,-460.0,0.00021429,2]
[376074820,1753853455131,-460.0,0.00021429,2]
[376074822,1753853455140,-460.0,0.0002143,2]
[376074824,1753853455149,-460.0,0.0002143,2]
[376074826,1753853455159,-1247.21,0.0002143,2]
[376074828,1753853455170,-460.0,0.00021431,2]
[376074830,1753853455179,-337.2830695,0.00021431,2]
[376074832,1753853455189,-460.0,0.00021431,2]
[376074834,1753853455198,-460.0,0.00021431,2]
[376074836,1753853455208,-803.25,0.00021431,2]
[376074838,1753853455217,-460.0,0.00021431,2]
[376074840,1753853455227,-460.0,0.00021431,2]
[376074841,1753853455236,-654.77,0.00021431,2]
[376074843,1753853455248,-460.0,0.00021431,2]
[376074845,1753853455258,-519.82,0.00021431,2]
[376074847,1753853455266,-1937.43,0.00021438,2]
[376074849,1753853455276,-527.02,0.00021438,2]
[376074851,1753853455285,-182.9621,0.00021438,2]
[376074853,1753853455294,-182.9621,0.00021438,2]
[376074855,1753853455303,-786.5,0.00021438,2]
[376074857,1753853455312,-826.84,0.00021438,2]
[376074859,1753853455322,-460.0,0.00021438,2]
[376074861,1753853455332,-460.0,0.00021438,2]
[376074863,1753853455341,-1543.79,0.00021438,2]
[376074865,1753853455351,-460.0,0.00021438,2]
[376074867,1753853455361,-877.49,0.00021438,2]
[376074868,1753853455370,-151.0,0.00021452,2]
[376074870,1753853455379,-800.0,0.00021462,2]
[376074871,1753853455389,-2500.0,0.00021464,2]
[376074872,1753853455398,-2500.0,0.00021464,2]
[376074873,1753853455408,-2500.0,0.00021464,2]
[376074874,1753853455418,-2500.0,0.00021464,2]
[376074875,1753853455427,-211.51583527,0.00021464,2]
[376074876,1753853455437,-511.5459767,0.00021464,2]
[376074877,1753853455447,-2500.0,0.00021464,2]
[376074878,1753853455456,-2007.66863151,0.00021464,2]
[376074879,1753853455465,-5000.0,0.00021516,2]
[376074880,1753853455474,-560.62068256,0.00021521,5]
[376074881,1753853455483,-168.0,0.00021526,2]
[376074882,1753853455492,-296.3,0.0002155,4]
[376074883,1753853455502,-2500.0,0.00021564,2]
[376074884,1753853455511,-802.07978883,0.0002158,2]
[376074885,1753853455520,-560.62068256,0.00021659,5]
[376074886,1753853455529,-1155.9526372,0.00021671,2]
[376074887,1753853455538,-160.1336292,0.00021671,2]
[376074888,1753853455547,-178.4701425,0.00021671,2]
[376074889,1753853455556,-646.6455874,0.00021691,2]
[376074890,1753853455565,-1027.26,0.00021701,2]
[376074891,1753853455574,-2127.65,0.00021702,2]
[376074892,1753853455583,-1489.26,0.00021702,2]
[376074893,1753853455593,-718.13,0.00021702,2]
[376074894,1753853455602,-460.0,0.00021702,2]
[376074895,1753853455611,-2793.96,0.00021702,2]
[376074896,1753853455620,-460.0,0.00021702,2]
[376074897,1753853455629,-460.0,0.00021703,2]
[376074898,1753853455639,-496.26501137,0.00021703,2]
[376074900,1753853455648,-489.17,0.00021703,2]
[376074902,1753853455658,-1486.8,0.00021703,2]
[376074904,1753853455666,-460.0,0.00021703,2]
[376074906,1753853455676,-460.0,0.00021703,2]
[376074908,1753853455685,-460.0,0.00021703,2]
[376074910,1753853455695,-460.0,0.00021703,2]
[376074912,1753853455704,-460.0,0.00021704,2]
[376074914,1753853455713,-460.0,0.00021704,2]
[376074916,1753853455722,-1247.21,0.00021704,2]
[376074918,1753853455732,-151.0,0.00021705,2]
[376074920,1753853455741,-151.0,0.00021705,2]
[376074922,1753853455750,-151.0,0.00021705,2]
[376074924,1753853455759,-460.0,0.00021705,2]
[376074926,1753853455769,-460.0,0.00021705,2]
[376074928,1753853455778,-803.25,0.00021705,2]
[376074930,1753853455787,-654.77,0.00021705,2]
[376074932,1753853455796,-460.0,0.00021705,2]
[376074934,1753853455806,-519.82,0.00021705,2]
[376074936,1753853455815,-500.0,0.00021711,2]
[376074938,1753853455825,-1937.43,0.00021712,2]
[376074940,1753853455835,-527.02,0.00021712,2]
[376074942,1753853455844,-786.5,0.00021712,2]
[376074944,1753853455853,-826.84,0.00021712,2]
[376074946,1753853455863,-460.0,0.00021712,2]
[376074948,1753853455873,-460.0,0.00021712,2]
[376074950,1753853455882,-1543.79,0.00021712,2]
[376074952,1753853455892,-460.0,0.00021712,2]
[376074954,1753853455901,-877.49,0.00021712,2]
[376074956,1753853455911,-296.3,0.00021734,4]
[376074958,1753853455920,-115188.79301368,0.00021739,2]
[376074960,1753853455929,-219.478815,0.00021795,2]
[376074962,1753853455939,-151.0,0.00021796,2]
[376074964,1753853455949,-560.62068256,0.00021797,6]
[376074966,1753853455958,-800.000001,0.0002187,2]
[376074968,1753853455968,-560.0,0.00021887,2]
[376074970,1753853455977,-500.0,0.00021917,2]
[376074972,1753853455986,-500.0,0.00021917,2]
[376074974,1753853455995,-500.0,0.00021917,2]
[376074976,1753853456004,-500.0,0.00021917,2]
[376074978,1753853456014,-500.0,0.00021917,2]
[376074980,1753853456023,-500.0,0.00021917,2]
[376074982,1753853456033,-504.00606419,0.00021917,2]
[376074984,1753853456042,-151.0,0.00021918,2]
[376074986,1753853456051,-151.0,0.00021918,2]
[376074988,1753853456060,-151.0,0.00021918,2]
[376074990,1753853456070,-151.0,0.00021918,2]
[376074992,1753853456079,-150.0,0.00021918,2]
[376074994,1753853456089,-150.87783168,0.00021918,2]
[376074996,1753853456098,-180.41347426,0.00021918,2]
[376074998,1753853456108,-200.0,0.00021918,2]
[376075000,1753853456118,-151.85314,0.00021918,7]
[376075002,1753853456127,-296.3,0.00021918,4]
[376075004,1753853456136,-3196.69818684,0.00021928,2]
[376075006,1753853456146,-560.62068256,0.00021934,6]
[376075008,1753853456156,-1027.26,0.00021975,2]
[376075010,1753853456166,-2127.65,0.00021976,2]
[376075012,1753853456176,-1489.26,0.00021976,2]
[376075014,1753853456185,-718.13,0.00021976,2]
[376075016,1753853456195,-389.53291621,0.00021976,2]
[376075018,1753853456205,-2793.96,0.00021976,2]
[376075020,1753853456214,-460.0,0.00021976,2]
[376075022,1753853456223,-460.0,0.00021977,2]
[376075024,1753853456235,-489.17,0.00021977,2]
[376075026,1753853456247,-1486.8,0.00021977,2]
[376075028,1753853456256,-460.0,0.00021977,2]
[376075030,1753853456266,-460.0,0.00021977,2]
[376075032,1753853456275,-460.0,0.00021977,2]
[376075034,1753853456284,-247.26379584,0.00021978,2]
[376075036,1753853456293,-460.0,0.00021978,2]
[376075038,1753853456303,-1247.21,0.00021978,2]
[376075040,1753853456312,-460.0,0.00021979,2]
[376075042,1753853456322,-460.0,0.00021979,2]
[376075044,1753853456332,-803.25,0.00021979,2]
[376075046,1753853456341,-151.0,0.00021979,7]
[376075048,1753853456351,-654.77,0.00021979,2]
[376075050,1753853456360,-460.0,0.00021979,2]
[376075052,1753853456370,-519.82,0.00021979,2]
[376075054,1753853456380,-392.598788,0.00021979,7]
[376075056,1753853456389,-392.598788,0.00021979,7]
[376075058,1753853456398,-1937.43,0.00021986,2]
[376075060,1753853456408,-527.02,0.00021986,2]
[376075062,1753853456417,-786.5,0.00021986,2]
[376075064,1753853456426,-826.84,0.00021986,2]
[376075066,1753853456436,-256.45812933,0.00021986,2]
[376075068,1753853456445,-460.0,0.00021986,2]
[376075070,1753853456455,-1543.79,0.00021986,2]
[376075072,1753853456464,-460.0,0.00021986,2]
[376075074,1753853456474,-877.49,0.00021986,2]
[376075084,1753853456561,-62861.08,0.00022,2]
[376075086,1753853456571,-460.59675358,0.00022,3]
[376075088,1753853456580,-11553.62384503,0.00022,2]
[376075090,1753853456589,-2811.27,0.00022,2]
[376075092,1753853456598,-162.0,0.00022,2]
[376075094,1753853456608,-2026.51119227,0.00022012,2]
[376075096,1753853456617,-657.43379372,0.00022012,2]
[376075098,1753853456626,-3000.0,0.00022012,2]
[376075100,1753853456636,-3000.0,0.00022012,2]
[376075101,1753853456645,-519.01170773,0.00022012,2]
[376075102,1753853456654,-560.62068256,0.00022072,6]
[376075103,1753853456663,-151.0,0.00022097,7]
[376075104,1753853456673,-151.0,0.00022097,7]
[376075105,1753853456683,-296.3,0.00022102,5]
[376075106,1753853456692,-3000.0,0.00022112,2]
[376075107,1753853456701,-500.0,0.00022152,2]
[376075108,1753853456711,-1500.0,0.00022164,2]
[376075109,1753853456720,-59440.10703324,0.00022171,2]
[376075110,1753853456729,-560.62068256,0.0002221,6]
[376075111,1753853456738,-168.56846845,0.00022219,2]
[376075112,1753853456747,-168.56846845,0.00022219,2]
[376075113,1753853456757,-1027.26,0.00022249,2]
[376075114,1753853456766,-2127.65,0.0002225,2]
[376075115,1753853456775,-1489.26,0.0002225,2]
[376075116,1753853456785,-718.13,0.0002225,2]
[376075117,1753853456794,-2793.96,0.0002225,2]
[376075118,1753853456803,-460.0,0.0002225,2]
[376075119,1753853456812,-460.0,0.00022251,2]
[376075120,1753853456822,-489.17,0.00022251,2]
[376075121,1753853456831,-1486.8,0.00022251,2]
[376075122,1753853456840,-460.0,0.00022251,2]
[376075123,1753853456850,-460.0,0.00022251,2]
[376075124,1753853456859,-460.0,0.00022251,2]
[376075125,1753853456868,-460.0,0.00022252,2]
[376075126,1753853456877,-1247.21,0.00022252,2]
[376075127,1753853456887,-460.0,0.00022253,2]
[376075128,1753853456896,-460.0,0.00022253,2]
[376075129,1753853456905,-803.25,0.00022253,2]
[376075130,1753853456915,-654.77,0.00022253,2]
[376075131,1753853456924,-460.0,0.00022253,2]
[376075132,1753853456934,-519.82,0.00022253,2]
[376075133,1753853456943,-168.0,0.00022257,2]
[376075134,1753853456952,-1937.43,0.0002226,2]
[376075135,1753853456961,-527.02,0.0002226,2]
[376075136,1753853456971,-786.5,0.0002226,2]
[376075137,1753853456980,-826.84,0.0002226,2]
[376075138,1753853456989,-460.0,0.0002226,2]
[376075139,1753853456998,-1543.79,0.0002226,2]
[376075140,1753853457008,-460.0,0.0002226,2]
[376075141,1753853457017,-877.49,0.0002226,2]
[376075142,1753853457027,-500.0,0.0002226,2]
[376075143,1753853457036,-151.0,0.00022261,2]
[376075144,1753853457045,-500.0,0.00022261,2]
[376075145,1753853457055,-151.0,0.00022261,2]
[376075146,1753853457064,-970.0,0.00022273,2]
[376075147,1753853457073,-407.0,0.00022273,2]
[376075149,1753853457083,-425.782,0.00022273,2]
[376075151,1753853457092,-296.3,0.00022286,5]
[376075153,1753853457101,-560.62068256,0.00022348,7]
[376075155,1753853457111,-153.888598,0.00022356,8]
[376075157,1753853457120,-151.0,0.00022358,7]
[376075159,1753853457129,-500.0,0.00022378,2]
[376075161,1753853457139,-151.0,0.0002238,7]
[376075163,1753853457149,-151.0,0.0002239,7]
[376075165,1753853457158,-151.0,0.0002239,7]
[376075167,1753853457170,-182.9621,0.0002239,7]
[376075169,1753853457179,-182.9621,0.0002239,7]
[376075171,1753853457189,-500.0,0.00022399,2]
[376075173,1753853457198,-2000.0,0.000224,2]
[376075175,1753853457207,-2000.0,0.000224,2]
[376075177,1753853457217,-153.888598,0.000224,5]
[376075179,1753853457226,-178.0562262,0.00022411,2]
[376075181,1753853457235,-500.323,0.00022422,2]
[376075183,1753853457247,-2200.0,0.00022422,2]
[376075185,1753853457257,-660.0,0.00022435,2]
[376075187,1753853457266,-153.888598,0.0002246,14]
[376075189,1753853457276,-300.0,0.00022466,2]
[376075191,1753853457285,-500.0,0.00022467,2]
[376075193,1753853457294,-289.09,0.00022467,2]
[376075195,1753853457303,-151.0,0.00022468,7]
[376075197,1753853457312,-151.0,0.00022468,7]
[376075199,1753853457321,-151.0,0.00022469,7]
[376075200,1753853457331,-151396.71861821,0.0002247,2]
[376075229,1753853457670,-460.0,0.00018966,2]
[376075231,1753853457680,-460.0,0.0001924,2]
[376075233,1753853457690,-200.0,0.00019343,15]
[376075234,1753853457700,-200.0,0.00019343,15]
[376075236,1753853457709,-200.0,0.00019343,15]
[376075237,1753853457719,-442.07602,0.00019513,2]
[376075340,1753853490288,24900.0,0.00018001,2]
[376075349,1753853571196,1034.3941422,0.00018042,2]
[376075350,1753853585924,-300.0,0.00018861,2]
[376075351,1753853585946,-5700.0,0.00018862,2]
[376075355,1753853766796,193.42240795,0.0001872,2]
[376075357,1753853849520,2235.30312029,0.0001879,2]
[376075360,1753853939691,155.79919796,0.00018763,2]
[376075364,1753854077395,227.563771,0.00013699,2]
[376075367,1753854105197,155.79919792,0.00018763,2]
[376075370,1753854182706,552.27771097,0.00018773,2]
[376075373,1753854261767,800.0,0.00017906,2]
[376075374,1753854261818,800.0,0.00017714,2]
[376075375,1753854262040,800.0,0.00018425,2]
[376075376,1753854262071,800.0,0.00017819,2]
[376075377,1753854265357,155.79919792,0.00018761,2]
[376075378,1753854281087,179.85613664,0.000184,2]
[376075386,1753854523317,691.37278318,0.00018773,2]
[376075420,1753854632637,-158.42466941,0.000188,2]
[376075422,1753854632647,-480.2952321,0.00018852,3]
[376075423,1753854632659,-389.1547679,0.00018852,3]
[376075424,1753854632668,-434.73,0.00018852,3]
[376075426,1753854632678,-217.36,0.00018852,3]
[376075428,1753854632687,-652.12,0.00018852,3]
[376075429,1753854632697,-300.0,0.00018858,2]
[376075431,1753854632707,-1006.54220817,0.00018859,2]
[376075433,1753854632716,-460.0,0.00018859,2]
[376075435,1753854632725,-465.21641958,0.00018859,2]
[376075437,1753854632735,-460.0,0.00018859,2]
[376075439,1753854632746,-535.9,0.00018859,2]
[376075442,1753854632763,-1387.14,0.00018859,2]
[376075446,1753854632773,-470.29614331,0.00018859,2]
[376075449,1753854632782,-175.42975143,0.0001886,2]
[376075451,1753854632791,-463.36593137,0.0001886,2]
[376075453,1753854632800,-469.69646902,0.0001886,2]
[376075455,1753854632810,-462.39446,0.0001886,2]
[376075457,1753854632819,-460.0,0.0001886,2]
[376075458,1753854632828,-460.0,0.0001886,2]
[376075459,1753854632838,-462.05508425,0.0001886,2]
[376075461,1753854632847,-460.0,0.0001886,2]
[376075462,1753854632856,-467.67599692,0.0001886,2]
[376075464,1753854632865,-460.0,0.0001886,2]
[376075466,1753854632874,-498.25228444,0.0001886,2]
[376075468,1753854632884,-460.0,0.0001886,2]
[376075469,1753854632894,-460.0,0.0001886,2]
[376075470,1753854632903,-465.21789101,0.0001886,2]
[376075471,1753854632912,-460.0,0.0001886,2]
[376075472,1753854632921,-460.0,0.0001886,2]
[376075473,1753854632930,-460.0,0.0001886,2]
[376075474,1753854632939,-460.0,0.0001886,2]
[376075475,1753854632948,-460.0,0.0001886,2]
[376075476,1753854632957,-460.0,0.0001886,2]
[376075477,1753854632967,-460.0,0.0001886,2]
[376075478,1753854632976,-460.0,0.0001886,2]
[376075479,1753854632985,-460.0,0.0001886,2]
[376075480,1753854632994,-461.84691379,0.0001886,2]
[376075481,1753854633004,-460.0,0.0001886,2]
[376075482,1753854633013,-460.0,0.0001886,2]
[376075483,1753854633023,-266.20078983,0.0001886,2]
[376075484,1753854633032,-464.34822856,0.0001886,2]
[376075485,1753854633042,-391.86722705,0.0001886,2]
[376075486,1753854633051,-461.06716121,0.0001886,2]
[376075487,1753854633060,-545.13410673,0.0001886,2]
[376075488,1753854633070,-2660.95,0.0001886,2]
[376075489,1753854633079,-460.0,0.0001886,2]
[376075490,1753854633089,-460.0,0.0001886,2]
[376075491,1753854633099,-460.0,0.0001886,2]
[376075492,1753854633108,-1871.59,0.0001886,2]
[376075493,1753854633118,-460.0,0.0001886,2]
[376075494,1753854633127,-1067.42,0.0001886,2]
[376075495,1753854633137,-460.0,0.00018861,2]
[376075496,1753854633148,-460.0,0.00018861,2]
[376075497,1753854633158,-460.0,0.00018861,2]
[376075498,1753854633167,-464.55129438,0.00018861,2]
[376075499,1753854633176,-464.52430789,0.00018861,2]
[376075500,1753854633185,-467.52902876,0.00018861,2]
[376075501,1753854633195,-463.92860438,0.00018861,2]
[376075502,1753854633205,-201.5161685,0.00018861,2]
[376075503,1753854633214,-460.0,0.00018861,2]
[376075504,1753854633224,-460.0,0.00018861,2]
[376075505,1753854633234,-3245.39,0.00018861,2]
[376075506,1753854633243,-460.0,0.00018861,2]
[376075507,1753854633253,-460.0,0.00018861,2]
[376075508,1753854633263,-460.0,0.00018861,2]
[376075509,1753854633272,-2274.73,0.00018861,2]
[376075510,1753854633282,-460.0,0.00018861,2]
[376075511,1753854633291,-460.0,0.00018861,2]
[376075512,1753854633300,-460.0,0.00018861,2]
[376075513,1753854633310,-460.0,0.00018861,2]
[376075514,1753854633319,-328.51705012,0.00018861,2]
[376075515,1753854633329,-460.0,0.00018861,2]
[376075516,1753854633339,-460.0,0.00018861,2]
[376075517,1753854633348,-745.91,0.00018861,2]
[376075518,1753854633357,-460.0,0.00018861,2]
[376075519,1753854633367,-460.0,0.00018861,2]
[376075520,1753854633376,-460.0,0.00018861,2]
[376075521,1753854633385,-460.0,0.00018861,2]
[376075522,1753854633395,-294.0731641,0.00018861,2]
[376075523,1753854633404,-460.0,0.00018861,2]
[376075524,1753854633414,-460.0,0.00018861,2]
[376075525,1753854633424,-460.0,0.00018861,2]
[376075526,1753854633433,-460.0,0.00018861,2]
[376075527,1753854633443,-679.61,0.00018861,2]
[376075528,1753854633452,-460.0,0.00018861,2]
[376075529,1753854633462,-460.0,0.00018861,2]
[376075530,1753854633471,-469.40638965,0.00018861,2]
[376075531,1753854633481,-460.0,0.00018861,2]
[376075532,1753854633490,-1153.42,0.00018861,2]
[376075533,1753854633504,-460.0,0.00018861,2]
[376075534,1753854633514,-460.0,0.00018861,2]
[376075535,1753854633523,-460.0,0.00018861,2]
[376075536,1753854633533,-278.94901738,0.00018861,2]
[376075537,1753854633543,-460.0,0.00018861,2]
[376075538,1753854633552,-537.8100261,0.00018861,2]
[376075539,1753854633561,-460.0,0.00018861,2]
[376075540,1753854633571,-460.0,0.00018861,2]
[376075541,1753854633580,-460.0,0.00018861,2]
[376075542,1753854633591,-460.0,0.00018861,2]
[376075543,1753854633600,-460.0,0.00018861,2]
[376075544,1753854633609,-373.43323923,0.00018861,2]
[376075545,1753854633619,-465.24854606,0.00018861,2]
[376075546,1753854633628,-472.2814141,0.00018861,2]
[376075547,1753854633637,-460.0,0.00018861,2]
[376075548,1753854633647,-460.0,0.00018861,2]
[376075549,1753854633657,-480.34,0.00018861,2]
[376075550,1753854633666,-463.06523699,0.00018861,2]
[376075551,1753854633675,-460.0,0.00018861,2]
[376075552,1753854633685,-460.0,0.00018861,2]
[376075553,1753854633694,-490.77,0.00018861,2]
[376075554,1753854633703,-460.0,0.00018861,2]
[376075555,1753854633713,-460.0,0.00018861,2]
[376075556,1753854633722,-113712.24143111,0.00018862,2]
[376075557,1753854633735,-898.48,0.00018862,2]
[376075558,1753854633747,-1905.06614686,0.00018862,2]
[376075601,1753854638802,-460.0,0.0001886,2]
[376075603,1753854638811,-12392.13347126,0.00018862,2]
[376075605,1753854638823,-28016.63577857,0.00018862,2]
[376075607,1753854638832,-500.0,0.00018873,2]
[376075609,1753854638841,-500.0,0.00018873,2]
[376075611,1753854638850,-500.0,0.00018873,2]
[376075613,1753854638860,-500.0,0.00018873,2]
[376075615,1753854638869,-500.0,0.00018873,2]
[376075617,1753854638878,-500.9298894,0.00018873,2]
[376075619,1753854638888,-500.0,0.00018873,2]
[376075621,1753854638899,-500.0,0.00018873,2]
[376075623,1753854638909,-311.75373205,0.000189,2]
[376075625,1753854638918,-533.89816642,0.000189,2]
[376075639,1753854639040,-460.85936797,0.0001896,2]
[376075642,1753854639055,-462.6997857,0.0001896,2]
[376075644,1753854639064,-346.88092487,0.0001896,2]
[376075646,1753854639073,-460.0,0.0001896,2]
[376075648,1753854639083,-512.33292437,0.0001896,2]
[376075650,1753854639092,-460.0,0.0001896,2]
[376075652,1753854639101,-462.21481982,0.0001896,2]
[376075654,1753854639110,-460.0,0.0001896,2]
[376075657,1753854639119,-254.63457923,0.0001896,2]
[376075660,1753854639128,-460.0,0.0001896,2]
[376075663,1753854639137,-463.53682294,0.0001896,2]
[376075666,1753854639147,-416.03165377,0.0001896,2]
[376075669,1753854639156,-460.0,0.0001896,2]
[376075670,1753854639166,-463.79576961,0.0001896,2]
[376075672,1753854639175,-460.0,0.0001896,2]
[376075674,1753854639184,-479.00248526,0.0001896,2]
[376075676,1753854639193,-317.16596216,0.0001896,2]
[376075679,1753854639205,-61.86980826,0.0001896,2]
[376075681,1753854639214,-461.5299484,0.0001896,2]
[376075683,1753854639224,-460.0,0.0001896,2]
[376075685,1753854639234,-460.44315175,0.0001896,2]
[376075687,1753854639243,-460.0,0.0001896,2]
[376075689,1753854639252,-189.54193095,0.0001896,2]
[376075691,1753854639261,-400.45396344,0.0001896,2]
[376075693,1753854639271,-460.0,0.0001896,2]
[376075695,1753854639280,-460.0,0.0001896,2]
[376075697,1753854639289,-274.67366446,0.0001896,2]
[376075699,1753854639300,-185.32633554,0.0001896,2]
[376075701,1753854639309,-460.0,0.0001896,2]
[376075703,1753854639319,-460.0,0.0001896,2]
[376075705,1753854639329,-460.0,0.0001896,2]
[376075707,1753854639338,-460.0,0.0001896,2]
[376075709,1753854639347,-470.23908987,0.0001896,2]
[376075711,1753854639356,-460.0,0.0001896,2]
[376075713,1753854639365,-460.0,0.0001896,2]
[376075715,1753854639374,-460.0,0.0001896,2]
[376075717,1753854639383,-460.0,0.0001896,2]
[376075719,1753854639392,-196.98979966,0.0001896,2]
[376075721,1753854639403,-460.0,0.0001896,2]
[376075723,1753854639411,-457.57792667,0.0001896,2]
[376075725,1753854639423,-4.65661564,0.0001896,2]
[376075727,1753854639432,-455.34338436,0.0001896,2]
[376075730,1753854639444,-4.65661564,0.0001896,2]
[376075732,1753854639454,-460.0,0.0001896,2]
[376075734,1753854639463,-463.22045581,0.0001896,2]
[376075736,1753854639473,-460.0,0.0001896,2]
[376075738,1753854639482,-460.0,0.0001896,2]
[376075740,1753854639491,-24.59209772,0.0001896,2]
[376075742,1753854639505,-435.40790228,0.0001896,2]
[376075744,1753854639514,-436.01624658,0.0001896,2]
[376075746,1753854639523,-460.0,0.0001896,2]
[376075748,1753854639533,-460.0,0.0001896,2]
[376075750,1753854639543,-500.0,0.0001896,2]
[376075752,1753854639554,-500.0,0.0001896,2]
[376075754,1753854639563,-460.0,0.0001896,2]
[376075756,1753854639573,-460.0,0.0001896,2]
[376075758,1753854639583,-404.61041897,0.0001896,2]
[376075759,1753854639593,-460.0,0.0001896,2]
[376075762,1753854639602,-467.42429093,0.0001896,2]
[376075764,1753854639611,-471.65808984,0.0001896,2]
[376075766,1753854639621,-460.0,0.0001896,2]
[376075768,1753854639630,-460.0,0.0001896,2]
[376075769,1753854639639,-460.0,0.0001896,2]
[376075772,1753854639650,-460.0,0.0001896,2]
[376075774,1753854639660,-460.0,0.0001896,2]
[376075775,1753854639669,-563.76358637,0.0001896,2]
[376075777,1753854639679,-465.15557131,0.0001896,2]
[376075780,1753854639688,-463.55037252,0.0001896,2]
[376075781,1753854639697,-460.0,0.0001896,2]
[376075783,1753854639707,-460.0,0.0001896,2]
[376075786,1753854639716,-460.0,0.0001896,2]
[376075787,1753854639726,-473.45987416,0.0001896,2]
[376075789,1753854639735,-460.0,0.0001896,2]
[376075791,1753854639744,-460.0,0.0001896,2]
[376075794,1753854639754,-460.0,0.0001896,2]
[376075795,1753854639763,-468.86111882,0.0001896,2]
[376075796,1753854639773,-460.0,0.0001896,2]
[376075797,1753854639782,-460.0,0.0001896,2]
[376075798,1753854639792,-460.0,0.0001896,2]
[376075799,1753854639801,-460.0,0.0001896,2]
[376075800,1753854639811,-460.0,0.0001896,2]
[376075801,1753854639820,-500.0,0.00018961,2]
[376075802,1753854639829,-460.0,0.00018962,2]
[376075803,1753854639838,-460.0,0.00018962,2]
[376075804,1753854639847,-500.0,0.00018962,2]
[376075805,1753854639856,-500.0,0.00018962,2]